fUSD/lending_fUSD_20241215
["ID","MTS","AMOUNT","RATE_DAILY","PERIOD"]
[345448592,1734263454771,-151.0,0.00019998,2]
[345448593,1734263454781,-564.71650174,0.00019998,3]
[345448594,1734263454792,-25.59349826,0.00019998,3]
[345448595,1734263454802,-590.31,0.00019998,3]
[345448596,1734263454812,-107.69650169,0.00019998,3]
[345448597,1734263455039,-482.61349831,0.00019998,3]
[345448598,1734263455049,-590.31,0.00019998,3]
[345448599,1734263455059,-546.48,0.00019998,3]
[345448600,1734263455069,-267.82703117,0.00019998,3]
[345448601,1734263455081,-278.65296883,0.00019998,3]
[345448602,1734263455090,-82.48703267,0.00019998,3]
[345448603,1734263455107,-463.99296733,0.00019998,3]
[345448604,1734263455117,-546.48,0.00019998,3]
[345448605,1734263455127,-500.0,0.00019998,3]
[345448606,1734263455137,-500.0,0.00019998,3]
[345448607,1734263455146,-500.0,0.00019998,3]
[345448608,1734263455156,-500.0,0.00019998,3]
[345448609,1734263455166,-748.24,0.00019998,3]
[345448610,1734263455175,-748.24,0.00019998,3]
[345448611,1734263455185,-748.24,0.00019998,3]
[345448612,1734263455195,-748.24,0.00019998,3]
[345448613,1734263455204,-546.64,0.00019998,3]
[345448614,1734263455213,-546.64,0.00019998,3]
[345448615,1734263455222,-546.64,0.00019998,3]
[345448616,1734263455231,-546.64,0.00019998,3]
[345448617,1734263455242,-500.0,0.00019998,3]
[345448618,1734263455251,-289.22492845,0.00019998,3]
[345448619,1734263455542,-210.77507155,0.00019998,3]
[345448620,1734263455552,-242.6255409,0.00019998,3]
[345448626,1734263525377,166.58,0.00010137,2]
[345448627,1734263977585,160.44,0.00013699,2]
[345448628,1734264143731,176.55,0.00014845,2]
[345448637,1734264533941,176.43,0.00010137,2]
[345448638,1734264570220,450.0,0.00013,2]
[345448639,1734264571355,500.0,0.00015,2]
[345448640,1734264591215,7450.910922,0.00015,7]
[345448641,1734264592259,2790.031434,0.00015,7]
[345448642,1734264593245,1418.408137,0.00015,7]
[345448644,1734264631578,-173.42,0.00015031,2]
[345448645,1734264631587,-176.43,0.00016813,2]
[345448646,1734264631597,-795.47,0.000169,2]
[345448647,1734264631607,-550.0,0.00017,2]
[345448648,1734264631616,-667.07,0.00018494,2]
[345448649,1734264631625,-304.26,0.00018514,2]
[345448650,1734264631635,-1000.0,0.00018527,2]
[345448651,1734264631644,-2751.0,0.0001854,2]
[345448652,1734264631654,-174.26,0.00018563,2]
[345448653,1734264631663,-500.0,0.00018664,2]
[345448654,1734264631672,-500.0,0.00018664,2]
[345448655,1734264631681,-500.0,0.00018664,2]
[345448656,1734264631690,-250.0,0.0001871,2]
[345448657,1734264631700,-25513.39464997,0.00018736,2]
[345448658,1734264631712,-60718.00775599,0.00018736,2]
[345448659,1734264631723,-359.63859129,0.00018736,2]
[345448660,1734264631838,-4123.0296,0.00018736,2]
[345448661,1734264631850,-525.44500493,0.00018736,2]
[345448662,1734264631893,-457.32324151,0.00018736,2]
[345448669,1734264637603,-480.67123095,0.00018736,2]
[345448670,1734264637658,-2962.18992536,0.00018736,2]
[345448671,1734264637667,-21535.8318113,0.00018766,2]
[345448672,1734264637679,-2364.1681887,0.00018766,2]
[345448673,1734264637688,-490.86,0.00018887,2]
[345448674,1734264637697,-150.0,0.00019,2]
[345448675,1734264637706,-351.043,0.00019,2]
[345448676,1734264637716,-600.0,0.00019,2]
[345448677,1734264637725,-795.47,0.00019164,2]
[345448678,1734264637735,-150.0,0.00019205,2]
[345448679,1734264637744,-300.0,0.00019205,2]
[345448680,1734264637754,-150.0,0.00019205,2]
[345448681,1734264637768,-364.65,0.00019205,2]
[345448682,1734264637777,-150.0,0.00019205,2]
[345448683,1734264637786,-150.0,0.00019205,2]
[345448684,1734264637795,-869.36,0.00019205,2]
[345448685,1734264637805,-364.65,0.00019205,2]
[345448686,1734264637815,-150.0,0.00019205,2]
[345448687,1734264637823,-254.26805107,0.00019205,2]
[345448688,1734264637867,-110.38194893,0.00019205,2]
[345448689,1734264637877,-150.0,0.00019205,2]
[345448690,1734264637886,-150.0,0.00019205,2]
[345448691,1734264637896,-364.65,0.00019205,2]
[345448692,1734264637905,-150.0,0.00019205,2]
[345448693,1734264637914,-364.0,0.00019205,2]
[345448695,1734264637923,-729.04,0.00019205,2]
[345448696,1734264637933,-151.68,0.0001938,2]
[345448698,1734264637942,-527.3,0.000194,2]
[345448700,1734264637952,-300.0,0.000194,2]
[345448702,1734264637962,-7.55648286,0.000194,2]
[345448729,1734264638189,-142.44351714,0.000194,2]
[345448731,1734264638199,-500.0,0.00019432,3]
[345448733,1734264638208,-500.0,0.00019432,3]
[345448735,1734264638218,-500.0,0.00019432,3]
[345448738,1734264638232,-500.0,0.00019432,3]
[345448761,1734264638442,-500.0,0.00019432,3]
[345448763,1734264638453,-227.28,0.00019432,3]
[345448765,1734264638463,-500.0,0.00019432,3]
[345448767,1734264638473,-561.62,0.00019432,3]
[345448769,1734264638482,-599.26,0.00019432,3]
[345448771,1734264638491,-500.0,0.00019432,3]
[345448773,1734264638501,-500.0,0.00019432,3]
[345448775,1734264638511,-500.0,0.00019432,3]
[345448777,1734264638521,-500.0,0.00019432,3]
[345448779,1734264638530,-721.43,0.00019432,3]
[345448781,1734264638539,-500.0,0.00019432,3]
[345448783,1734264638548,-500.0,0.00019432,3]
[345448785,1734264638557,-500.0,0.00019432,3]
[345448787,1734264638567,-500.0,0.00019432,3]
[345448789,1734264638576,-500.0,0.00019432,3]
[345448791,1734264638585,-500.0,0.00019432,3]
[345448793,1734264638594,-550.7,0.00019432,3]
[345448794,1734264638603,-500.0,0.00019432,3]
[345448795,1734264638613,-500.0,0.00019432,3]
[345448796,1734264638623,-500.0,0.00019432,3]
[345448797,1734264638633,-500.0,0.00019432,3]
[345448798,1734264638643,-500.0,0.00019432,3]
[345448799,1734264638652,-1031.691944,0.00019432,3]
[345448800,1734264638661,-1699.345557,0.00019432,3]
[345448801,1734264638671,-500.0,0.00019432,3]
[345448802,1734264638680,-969.84,0.00019432,3]
[345448803,1734264638689,-1930.79,0.00019432,3]
[345448804,1734264638699,-500.0,0.00019432,3]
[345448805,1734264638708,-500.0,0.00019432,3]
[345448806,1734264638718,-500.0,0.00019432,3]
[345448807,1734264638727,-588.46964128,0.00019432,3]
[345448808,1734264638736,-500.0,0.00019433,3]
[345448809,1734264638747,-500.0,0.00019433,3]
[345448810,1734264638758,-500.0,0.00019433,3]
[345448811,1734264638768,-500.0,0.00019433,3]
[345448812,1734264638777,-616.38,0.00019433,3]
[345448813,1734264638786,-527.92,0.00019433,3]
[345448814,1734264638796,-5818.33,0.00019433,3]
[345448815,1734264638805,-500.0,0.00019433,3]
[345448816,1734264638815,-500.0,0.00019433,3]
[345448817,1734264638825,-1684.52,0.00019433,3]
[345448818,1734264638835,-814.19,0.00019433,3]
[345448819,1734264638844,-500.0,0.00019433,3]
[345448820,1734264638854,-500.0,0.00019433,3]
[345448821,1734264638863,-500.0,0.00019433,3]
[345448822,1734264638872,-500.0,0.00019433,3]
[345448823,1734264638882,-634.55,0.00019433,3]
[345448824,1734264638891,-500.0,0.00019433,3]
[345448825,1734264638900,-500.0,0.00019433,3]
[345448826,1734264638910,-500.0,0.00019433,3]
[345448827,1734264638919,-500.0,0.00019433,3]
[345448828,1734264638928,-755.33,0.00019433,3]
[345448829,1734264638937,-1139.23,0.00019433,3]
[345448830,1734264638947,-500.0,0.00019433,3]
[345448831,1734264638956,-1071.01,0.00019433,3]
[345448832,1734264638965,-907.33,0.00019433,3]
[345448833,1734264638974,-2449.695101,0.00019433,3]
[345448837,1734264639554,-500.0,0.00019432,3]
[345448838,1734264639564,-500.0,0.00019432,3]
[345448839,1734264639573,-258.734899,0.00019433,3]
[345448840,1734264639583,-704.42,0.00019433,3]
[345448841,1734264639593,-670.64,0.00019433,3]
[345448842,1734264639602,-309.22828166,0.00019433,3]
[345448843,1734264639616,-335.0,0.00019433,3]
[345448844,1734264639658,-1597.81171834,0.00019433,3]
[345448845,1734264639667,-724.31,0.00019433,3]
[345448846,1734264639677,-1695.29205129,0.000196,2]
[345448847,1734264639688,-3463.88130291,0.000196,2]
[345448848,1734264639698,-5159.17335413,0.00019633,2]
[345448849,1734264639709,-5159.17335413,0.00019667,2]
[345448850,1734264639719,-150.0,0.00019692,2]
[345448851,1734264639729,-5159.17335413,0.000197,2]
[345448852,1734264639740,-5159.17335413,0.00019733,2]
[345448853,1734264639751,-500.0,0.00019738,3]
[345448854,1734264639762,-500.0,0.00019738,3]
[345448855,1734264639772,-500.0,0.00019738,3]
[345448856,1734264639781,-500.0,0.00019738,3]
[345448857,1734264639791,-500.0,0.00019738,3]
[345448858,1734264639800,-500.0,0.00019738,3]
[345448859,1734264639810,-561.62,0.00019738,3]
[345448860,1734264639819,-599.26,0.00019738,3]
[345448861,1734264639829,-500.0,0.00019738,3]
[345448862,1734264639839,-500.0,0.00019738,3]
[345448863,1734264639849,-500.0,0.00019738,3]
[345448864,1734264639858,-500.0,0.00019738,3]
[345448865,1734264639868,-721.43,0.00019738,3]
[345448866,1734264639878,-500.0,0.00019738,3]
[345448867,1734264639887,-500.0,0.00019738,3]
[345448868,1734264639896,-280.35860134,0.00019738,3]
[345448869,1734264639907,-500.0,0.00019738,3]
[345448870,1734264639916,-500.0,0.00019738,3]
[345448871,1734264639925,-500.0,0.00019738,3]
[345448872,1734264639934,-550.7,0.00019738,3]
[345448873,1734264639943,-500.0,0.00019738,3]
[345448874,1734264639954,-500.0,0.00019738,3]
[345448875,1734264639965,-500.0,0.00019738,3]
[345448876,1734264639975,-500.0,0.00019738,3]
[345448877,1734264639985,-500.0,0.00019738,3]
[345448878,1734264639999,-1031.691944,0.00019738,3]
[345448879,1734264640010,-1699.345557,0.00019738,3]
[345448880,1734264640020,-500.0,0.00019738,3]
[345448881,1734264640030,-969.84,0.00019738,3]
[345448882,1734264640040,-1930.79,0.00019738,3]
[345448883,1734264640049,-500.0,0.00019738,3]
[345448884,1734264640059,-500.0,0.00019738,3]
[345448885,1734264640069,-500.0,0.00019738,3]
[345448886,1734264640078,-500.0,0.00019738,3]
[345448887,1734264640088,-500.0,0.00019738,3]
[345448888,1734264640097,-500.0,0.00019739,3]
[345448889,1734264640107,-500.0,0.00019739,3]
[345448890,1734264640119,-626.91189283,0.00019739,3]
[345448891,1734264640128,-500.0,0.00019739,3]
[345448892,1734264640138,-500.0,0.00019739,3]
[345448893,1734264640148,-500.0,0.00019739,3]
[345448894,1734264640157,-244.89099195,0.00019739,3]
[345448895,1734264640170,-255.10900805,0.00019739,3]
[345448896,1734264640179,-500.0,0.00019739,3]
[345448897,1734264640188,-272.32849457,0.00019739,3]
[345448898,1734264640200,-227.67150543,0.00019739,3]
[345448899,1734264640209,-500.0,0.00019739,3]
[345448900,1734264640219,-500.0,0.00019739,3]
[345448901,1734264640230,-136.01684386,0.00019739,3]
[345448902,1734264640245,-363.98315614,0.00019739,3]
[345448903,1734264640255,-392.77603949,0.00019739,3]
[345448904,1734264640267,-107.22396051,0.00019739,3]
[345448905,1734264640276,-500.0,0.00019739,3]
[345448906,1734264640286,-500.0,0.00019739,3]
[345448907,1734264640295,-491.54029385,0.00019739,3]
[345448908,1734264640307,-23.14970615,0.00019739,3]
[345448909,1734264640317,-500.0,0.00019739,3]
[345448910,1734264640331,-500.0,0.00019739,3]
[345448911,1734264640340,-500.0,0.00019739,3]
[345448912,1734264640350,-322.70300696,0.00019739,3]
[345448913,1734264640362,-177.29699304,0.00019739,3]
[345448914,1734264640373,-500.0,0.00019739,3]
[345448915,1734264640382,-500.0,0.00019739,3]
[345448916,1734264640391,-500.0,0.00019739,3]
[345448917,1734264640402,-500.0,0.00019739,3]
[345448918,1734264640411,-500.0,0.00019739,3]
[345448919,1734264640421,-500.0,0.00019739,3]
[345448920,1734264640430,-500.0,0.00019739,3]
[345448921,1734264640440,-500.0,0.00019739,3]
[345448922,1734264640449,-500.0,0.00019739,3]
[345448923,1734264640459,-500.0,0.00019739,3]
[345448924,1734264640468,-500.0,0.00019739,3]
[345448925,1734264640478,-500.0,0.00019739,3]
[345448926,1734264640487,-500.0,0.00019739,3]
[345448927,1734264640497,-500.0,0.00019739,3]
[345448928,1734264640508,-281.92739676,0.00019739,3]
[345448929,1734264640520,-218.07260324,0.00019739,3]
[345448930,1734264640530,-500.0,0.00019739,3]
[345448931,1734264640539,-500.0,0.00019739,3]
[345448932,1734264640549,-500.0,0.00019739,3]
[345448933,1734264640558,-500.0,0.00019739,3]
[345448934,1734264640567,-500.0,0.00019739,3]
[345448935,1734264640577,-500.0,0.00019739,3]
[345448936,1734264640587,-500.0,0.00019757,3]
[345448937,1734264640596,-154.55719674,0.00019757,3]
[345448938,1734264640616,-345.44280326,0.00019757,3]
[345448939,1734264640625,-646.06897757,0.00019757,3]
[345448940,1734264640635,-500.0,0.00019757,3]
[345448941,1734264640645,-616.38,0.00019757,3]
[345448942,1734264640654,-527.92,0.00019757,3]
[345448943,1734264640664,-5818.33,0.00019757,3]
[345448944,1734264640674,-500.0,0.00019757,3]
[345448945,1734264640684,-500.0,0.00019757,3]
[345448946,1734264640693,-1684.52,0.00019757,3]
[345448947,1734264640703,-814.19,0.00019757,3]
[345448948,1734264640713,-500.0,0.00019757,3]
[345448949,1734264640723,-500.0,0.00019757,3]
[345448950,1734264640734,-500.0,0.00019757,3]
[345448951,1734264640743,-500.0,0.00019757,3]
[345448952,1734264640752,-634.55,0.00019757,3]
[345448953,1734264640764,-500.0,0.00019757,3]
[345448954,1734264640773,-500.0,0.00019757,3]
[345448955,1734264640783,-500.0,0.00019757,3]
[345448956,1734264640792,-500.0,0.00019757,3]
[345448957,1734264640802,-755.33,0.00019757,3]
[345448958,1734264640812,-1139.23,0.00019757,3]
[345448959,1734264640822,-167.69906218,0.00019757,3]
[345448960,1734264640834,-267.73747118,0.00019757,3]
[345448961,1734264640846,-64.56346664,0.00019757,3]
[345448962,1734264640856,-1071.01,0.00019757,3]
[345448963,1734264640866,-907.33,0.00019757,3]
[345448964,1734264640876,-2708.43,0.00019757,3]
[345448965,1734264640886,-704.42,0.00019757,3]
[345448966,1734264640896,-670.64,0.00019757,3]
[345448967,1734264640906,-2242.04,0.00019757,3]
[345448968,1734264640916,-499.09638117,0.00019757,2]
[345448969,1734264640926,-724.31,0.00019757,3]
[345448970,1734264640936,-1426.84,0.00019758,3]
[345448971,1734264640946,-500.0,0.00019758,3]
[345448972,1734264640956,-500.0,0.00019758,3]
[345448973,1734264640965,-500.0,0.00019758,3]
[345448974,1734264640975,-500.0,0.00019758,3]
[345448975,1734264640985,-500.0,0.00019758,3]
[345448976,1734264640994,-500.0,0.00019758,3]
[345448977,1734264641004,-500.0,0.00019758,3]
[345448978,1734264641014,-500.0,0.00019758,3]
[345448979,1734264641024,-501.36512585,0.00019758,3]
[345448980,1734264641034,-500.0,0.00019758,3]
[345448981,1734264641044,-500.0,0.00019758,3]
[345448982,1734264641053,-500.0,0.00019758,3]
[345448983,1734264641062,-503.99770186,0.00019758,3]
[345448984,1734264641072,-500.0,0.00019758,3]
[345448985,1734264641082,-374.00752616,0.00019758,3]
[345448986,1734264641091,-500.0,0.00019758,3]
[345448987,1734264641101,-500.0,0.00019758,3]
[345448988,1734264641111,-500.0,0.00019758,3]
[345448989,1734264641120,-500.0,0.00019758,3]
[345448990,1734264641129,-500.0,0.00019758,3]
[345448991,1734264641138,-506.33863915,0.00019758,3]
[345448992,1734264641147,-343.25879843,0.00019758,3]
[345448993,1734264641156,-509.43493284,0.00019758,3]
[345448994,1734264641165,-500.0,0.00019758,3]
[345448995,1734264641175,-508.26814213,0.00019758,3]
[345448996,1734264641185,-424.20441551,0.00019758,3]
[345448997,1734264641195,-500.0,0.00019758,3]
[345448998,1734264641204,-500.0,0.00019758,3]
[345448999,1734264641214,-622.27399693,0.00019758,3]
[345449000,1734264641224,-511.6234398,0.00019758,3]
[345449001,1734264641233,-500.0,0.00019758,3]
[345449002,1734264641243,-518.87511033,0.00019758,3]
[345449003,1734264641253,-500.0,0.00019758,3]
[345449004,1734264641267,-511.56009874,0.00019758,3]
[345449005,1734264641276,-536.22714124,0.00019758,3]
[345449006,1734264641285,-500.0,0.00019758,3]
[345449007,1734264641294,-585.21218798,0.00019758,3]
[345449008,1734264641303,-510.89065729,0.00019758,3]
[345449009,1734264641314,-500.0,0.00019758,3]
[345449010,1734264641326,-513.37798312,0.00019758,3]
[345449011,1734264641337,-500.0,0.00019758,3]
[345449012,1734264641348,-500.0,0.00019758,3]
[345449013,1734264641358,-500.0,0.00019758,3]
[345449014,1734264641368,-500.48072049,0.00019758,3]
[345449015,1734264641378,-500.0,0.00019758,3]
[345449016,1734264641388,-506.54277718,0.00019758,3]
[345449017,1734264641400,-430.83420345,0.00019758,3]
[345449018,1734264641410,-500.0,0.00019758,3]
[345449019,1734264641419,-523.39898516,0.00019758,3]
[345449020,1734264641429,-501.57956761,0.00019758,3]
[345449021,1734264641439,-645.26445108,0.00019758,3]
[345449022,1734264641449,-511.3241266,0.00019758,3]
[345449023,1734264641459,-523.38951448,0.00019758,3]
[345449024,1734264641468,-500.0,0.00019758,3]
[345449025,1734264641477,-521.70459039,0.00019758,3]
[345449026,1734264641487,-512.06018972,0.00019758,3]
[345449027,1734264641496,-500.0,0.00019758,3]
[345449028,1734264641508,-500.0,0.00019758,3]
[345449029,1734264641517,-500.0,0.00019758,3]
[345449030,1734264641527,-513.24293809,0.00019758,3]
[345449031,1734264641537,-500.0,0.00019758,3]
[345449032,1734264641547,-500.0,0.00019758,2]
[345449033,1734264641556,-500.0,0.00019758,3]
[345449034,1734264641566,-248.48363653,0.00019758,3]
[345449035,1734264641575,-500.0,0.00019758,3]
[345449036,1734264641585,-511.76634044,0.00019758,3]
[345449037,1734264641594,-502.37697595,0.00019758,3]
[345449038,1734264641604,-503.00225308,0.00019758,3]
[345449039,1734264641613,-506.58889304,0.00019758,3]
[345449040,1734264641623,-501.54265564,0.00019758,3]
[345449041,1734264641632,-500.0,0.00019758,3]
[345449042,1734264641641,-506.85173276,0.00019758,3]
[345449043,1734264641651,-500.0,0.00019758,3]
[345449044,1734264641660,-231.17564199,0.00019758,3]
[345449045,1734264641670,-500.0,0.00019758,3]
[345449046,1734264641680,-507.92967167,0.00019758,3]
[345449047,1734264641689,-500.0,0.00019758,3]
[345449048,1734264641699,-447.269358,0.00019758,3]
[345449049,1734264641708,-511.70224114,0.00019758,3]
[345449050,1734264641717,-500.0,0.00019758,3]
[345449051,1734264641727,-513.35984358,0.00019758,3]
[345449052,1734264641737,-500.0,0.00019758,3]
[345449053,1734264641746,-504.77752602,0.00019758,3]
[345449054,1734264641756,-500.0,0.00019758,3]
[345449055,1734264641772,-205.5,0.00019758,3]
[345449056,1734264641782,-501.65338327,0.00019758,3]
[345449057,1734264641791,-500.0,0.00019758,3]
[345449058,1734264641801,-500.0,0.00019758,3]
[345449059,1734264641810,-500.0,0.00019758,3]
[345449060,1734264641819,-507.16809621,0.00019758,3]
[345449061,1734264641828,-500.0,0.00019758,3]
[345449062,1734264641838,-266.40540023,0.00019758,3]
[345449063,1734264641847,-500.0,0.00019758,3]
[345449064,1734264641856,-500.0,0.00019758,3]
[345449065,1734264641866,-500.0,0.00019758,3]
[345449066,1734264641875,-500.0,0.00019758,3]
[345449067,1734264641885,-500.0,0.00019758,3]
[345449068,1734264641894,-500.0,0.00019758,3]
[345449069,1734264641903,-355.61019857,0.00019758,3]
[345449077,1734264642511,-177.1449541,0.00019758,3]
[345449079,1734264642520,-506.53237806,0.00019758,3]
[345449081,1734264642529,-502.95809756,0.00019758,3]
[345449083,1734264642539,-500.0,0.00019758,3]
[345449085,1734264642548,-500.0,0.00019758,3]
[345449087,1734264642558,-500.0,0.00019758,3]
[345449089,1734264642567,-500.0,0.00019758,3]
[345449091,1734264642575,-500.0,0.00019758,3]
[345449093,1734264642584,-500.0,0.00019758,3]
[345449094,1734264642593,-500.0,0.00019758,3]
[345449097,1734264642603,-500.0,0.00019758,3]
[345449099,1734264642612,-500.0,0.00019758,3]
[345449100,1734264642621,-500.0,0.00019758,3]
[345449102,1734264642630,-266.55,0.00019758,3]
[345449104,1734264642639,-500.0,0.00019758,3]
[345449106,1734264642648,-301.45324376,0.00019758,3]
[345449108,1734264642658,-500.0,0.00019758,3]
[345449109,1734264642667,-500.0,0.00019758,3]
[345449110,1734264642676,-2092.55,0.00019758,3]
[345449111,1734264642685,-885.02,0.00019758,3]
[345449112,1734264642695,-500.0,0.00019758,3]
[345449113,1734264642704,-509.81811813,0.00019758,3]
[345449114,1734264642713,-500.0,0.00019758,3]
[345449115,1734264642721,-506.72283097,0.00019758,3]
[345449116,1734264642730,-500.0,0.00019758,3]
[345449117,1734264642740,-500.0,0.00019758,3]
[345449118,1734264642750,-502.88007344,0.00019758,3]
[345449119,1734264642760,-500.99717809,0.00019758,3]
[345449120,1734264642770,-531.26,0.00019758,3]
[345449121,1734264642779,-301.37307334,0.00019758,3]
[345449122,1734264642789,-500.0,0.00019758,3]
[345449123,1734264642798,-500.0,0.00019758,3]
[345449124,1734264642808,-500.0,0.00019758,3]
[345449125,1734264642817,-500.0,0.00019758,3]
[345449126,1734264642826,-515.86,0.00019758,3]
[345449127,1734264642834,-500.0,0.00019758,3]
[345449128,1734264642843,-500.0,0.00019758,3]
[345449129,1734264642852,-500.0,0.00019758,3]
[345449130,1734264642862,-500.0,0.00019758,3]
[345449131,1734264642872,-504.50738436,0.00019758,3]
[345449132,1734264642883,-500.0,0.00019758,3]
[345449133,1734264642893,-500.0,0.00019758,3]
[345449134,1734264642903,-502.87887313,0.00019758,3]
[345449135,1734264642912,-500.0,0.00019758,3]
[345449136,1734264642922,-505.53919345,0.00019758,3]
[345449137,1734264642933,-533.77,0.00019758,3]
[345449138,1734264642943,-504.39120267,0.00019758,3]
[345449139,1734264642954,-502.19071329,0.00019758,3]
[345449140,1734264642964,-506.58736817,0.00019758,3]
[345449141,1734264642974,-500.0,0.00019758,3]
[345449142,1734264642984,-504.55090092,0.00019758,3]
[345449143,1734264642993,-955.93,0.00019758,3]
[345449144,1734264643003,-246.67979422,0.00019758,3]
[345449145,1734264643014,-500.0,0.00019758,3]
[345449146,1734264643023,-500.0,0.00019758,3]
[345449147,1734264643033,-500.0,0.00019758,3]
[345449148,1734264643043,-688.43,0.00019758,3]
[345449149,1734264643054,-502.04482622,0.00019758,3]
[345449150,1734264643064,-503.23621371,0.00019758,3]
[345449151,1734264643075,-502.43911535,0.00019758,3]
[345449152,1734264643084,-535.27,0.00019758,3]
[345449153,1734264643094,-505.31296034,0.00019758,3]
[345449154,1734264643104,-500.0,0.00019758,3]
[345449155,1734264643113,-510.43027819,0.00019758,3]
[345449156,1734264643123,-500.41387853,0.00019758,3]
[345449157,1734264643137,-2.46656791,0.00019758,3]
[345449158,1734264643146,-500.0,0.00019758,3]
[345449159,1734264643156,-500.0,0.00019758,3]
[345449160,1734264643166,-586.94342556,0.00019758,3]
[345449161,1734264643175,-629.59,0.00019758,3]
[345449162,1734264643185,-501.72966183,0.00019758,3]
[345449163,1734264643195,-500.0,0.00019758,3]
[345449164,1734264643205,-500.0,0.00019758,3]
[345449165,1734264643215,-502.81929174,0.00019758,3]
[345449166,1734264643225,-508.60882008,0.00019758,3]
[345449167,1734264643235,-700.58,0.00019758,3]
[345449168,1734264643245,-500.0,0.00019758,3]
[345449169,1734264643255,-500.0,0.00019758,3]
[345449170,1734264643265,-495.40809184,0.00019758,3]
[345449171,1734264643275,-500.0,0.00019758,3]
[345449172,1734264643285,-843.51,0.00019758,3]
[345449173,1734264643296,-501.84785571,0.00019758,3]
[345449174,1734264643307,-500.0,0.00019758,3]
[345449175,1734264643316,-264.57535582,0.00019758,3]
[345449176,1734264643331,-500.0,0.00019758,3]
[345449177,1734264643341,-509.77598357,0.00019758,3]
[345449178,1734264643352,-1357.31,0.00019758,3]
[345449179,1734264643363,-500.0,0.00019758,3]
[345449180,1734264643547,-515.76314086,0.00019758,3]
[345449181,1734264643559,-500.0,0.00019758,3]
[345449182,1734264643569,-500.0,0.00019758,3]
[345449183,1734264643578,-330.50527949,0.00019758,3]
[345449184,1734264643589,-787.31,0.00019758,3]
[345449185,1734264643599,-428.9669019,0.00019758,3]
[345449186,1734264643608,-500.0,0.00019758,3]
[345449187,1734264643618,-241.25152209,0.00019758,3]
[345449188,1734264643628,-500.0,0.00019758,3]
[345449189,1734264643638,-500.0,0.00019758,3]
[345449190,1734264643647,-500.0,0.00019758,3]
[345449191,1734264643657,-500.0,0.00019758,3]
[345449192,1734264643667,-500.0,0.00019758,3]
[345449193,1734264643677,-500.0,0.00019758,3]
[345449194,1734264643686,-502.7236223,0.00019758,3]
[345449195,1734264643696,-506.27366278,0.00019758,3]
[345449196,1734264643706,-500.0,0.00019758,3]
[345449197,1734264643717,-357.20682757,0.00019758,3]
[345449198,1734264643727,-500.0,0.00019758,3]
[345449199,1734264643736,-500.0,0.00019758,3]
[345449200,1734264643746,-1446.8,0.00019758,3]
[345449201,1734264643756,-501.82496871,0.00019758,3]
[345449202,1734264643767,-500.0,0.00019758,3]
[345449203,1734264643777,-500.0,0.00019758,3]
[345449204,1734264643787,-500.0,0.00019758,3]
[345449205,1734264643797,-500.0,0.00019758,3]
[345449206,1734264643808,-500.0,0.00019758,3]
[345449207,1734264643817,-500.0,0.00019758,3]
[345449208,1734264643827,-500.0,0.00019758,3]
[345449209,1734264643837,-500.0,0.00019758,3]